fUST/lending_fUST_20250318
["ID","MTS","AMOUNT","RATE_DAILY","PERIOD"]
[356340595,1742298649633,-121.90785311,8.767e-05,2]
[356340596,1742298649643,-500.0,8.767e-05,2]
[356340597,1742298649653,-500.0,8.767e-05,2]
[356340598,1742298649662,-840.33,8.767e-05,2]
[356340599,1742298649670,-500.0,8.767e-05,2]
[356340600,1742298649679,-322.75660369,8.767e-05,2]
[356340601,1742298649688,-500.0,8.767e-05,2]
[356340602,1742298649697,-500.0,8.767e-05,2]
[356340603,1742298649707,-12317.52644666,8.767e-05,2]
[356340604,1742298649839,-8391.67634801,8.767e-05,2]
[356340605,1742298724780,-150.0,7.286e-05,2]
[356340606,1742299024978,-11.4557644,7.286e-05,2]
[356340607,1742299025004,-138.5442356,7.501e-05,2]
[356340608,1742299045297,-111.4557644,7.501e-05,2]
[356340609,1742299045320,-95.44084098,8.218e-05,2]
[356340610,1742299061143,-204.55915902,8.218e-05,2]
[356340611,1742299061804,-200.0,8.219e-05,2]
[356340612,1742299245020,-158.6305,7.57e-05,2]
[356340613,1742299314517,-200.0,7.494e-05,2]
[356340614,1742299346929,-300.0,7.494e-05,2]
[356340615,1742299347659,-300.0,7.494e-05,2]
[356340617,1742299500783,-151.0,7.419e-05,2]
[356340619,1742299761139,-639.59740406,7.494e-05,2]
[356340620,1742299761162,-1912.71594436,7.57e-05,2]
[356340672,1742299840809,-0.00137828,7.57e-05,2]
[356340714,1742299843629,-43.05042136,7.57e-05,2]
[356340715,1742299843639,-301.0,8.218e-05,2]
[356340716,1742299843649,-365.94584586,8.218e-05,2]
[356340726,1742299846623,-134.05415414,8.218e-05,2]
[356340727,1742299846633,-587.23185873,8.218e-05,2]
[356340728,1742299846644,-300.0,8.218e-05,2]
[356340729,1742299846655,-500.0,8.219e-05,2]
[356340730,1742299846666,-500.0,8.219e-05,2]
[356340731,1742299846675,-500.0,8.219e-05,2]
[356340732,1742299846685,-535.63416476,8.219e-05,2]
[356340733,1742299846695,-500.0,8.219e-05,2]
[356340734,1742299846705,-500.0,8.219e-05,2]
[356340735,1742299846716,-195.35,8.219e-05,2]
[356340736,1742299846725,-500.0,8.219e-05,2]
[356340737,1742299846735,-500.0,8.219e-05,2]
[356340738,1742299846745,-500.0,8.219e-05,2]
[356340739,1742299846755,-330.57632837,8.219e-05,2]
[356340740,1742299846767,-174.42367163,8.219e-05,2]
[356340741,1742299846777,-251.5022964,8.219e-05,2]
[356340742,1742299846787,-500.0,8.219e-05,2]
[356340743,1742299846797,-4117.06,8.219e-05,2]
[356340744,1742299846807,-500.0,8.219e-05,2]
[356340745,1742299846817,-735.29,8.219e-05,2]
[356340746,1742299846827,-507.3,8.219e-05,2]
[356340747,1742299846836,-1033.78,8.219e-05,2]
[356340748,1742299846846,-500.0,8.219e-05,2]
[356340749,1742299846856,-695.64403197,8.219e-05,2]
[356340750,1742299846868,-925.08596803,8.219e-05,2]
[356340751,1742299846878,-230.38631517,8.219e-05,2]
[356340752,1742299846891,-269.61368483,8.219e-05,2]
[356340753,1742299846902,-500.0,8.219e-05,2]
[356340754,1742299846911,-346.4612944,8.219e-05,2]
[356340755,1742299846923,-153.5387056,8.219e-05,2]
[356340756,1742299846933,-500.0,8.219e-05,2]
[356340757,1742299846943,-177.12320941,8.219e-05,2]
[356340759,1742299983330,-150.0,7.501e-05,2]
[356340761,1742300236303,2000.0,0.00014,30]
[356340763,1742300728807,1000.0,0.00014,30]
[356340774,1742300803135,-177.10636203,7.501e-05,2]
[356340775,1742300803788,-177.298009,7.501e-05,2]
[356340797,1742300930849,-150.0,7.501e-05,2]
[356340802,1742300945121,-150.0,7.426e-05,2]
[356340803,1742300945143,-2777.26299117,7.501e-05,2]
[356340804,1742300945164,-1579.0,7.501e-05,2]
[356340805,1742300945185,-200.0,7.784e-05,2]
[356340806,1742300945207,-300.0,7.999e-05,2]
[356340807,1742300945228,-500.3824547,8e-05,2]
[356340808,1742300945248,-3668.68033292,8e-05,2]
[356340809,1742300945277,-202.43726708,8e-05,2]
[356340810,1742300956325,-219.05208396,8.2e-05,2]
[356340823,1742301032657,-1780.94791604,8.2e-05,2]
[356340824,1742301032667,-250.0,8.2e-05,2]
[356340825,1742301032677,-300.0,8.218e-05,2]
[356340826,1742301032687,-500.0,8.219e-05,2]
[356340827,1742301032696,-500.0,8.219e-05,2]
[356340828,1742301032705,-501.58298223,8.219e-05,2]
[356340829,1742301032717,-500.0,8.219e-05,2]
[356340830,1742301032727,-500.0,8.219e-05,2]
[356340831,1742301032737,-500.0,8.219e-05,2]
[356340832,1742301032746,-500.0,8.219e-05,2]
[356340833,1742301032756,-500.0,8.219e-05,2]
[356340834,1742301032765,-500.0,8.219e-05,2]
[356340835,1742301032775,-500.0,8.219e-05,2]
[356340836,1742301032785,-538.9281965,8.219e-05,2]
[356340837,1742301032794,-500.0,8.219e-05,2]
[356340838,1742301032804,-500.0,8.219e-05,2]
[356340839,1742301032814,-503.53503436,8.219e-05,2]
[356340840,1742301032823,-500.0,8.219e-05,2]
[356340841,1742301032833,-500.0,8.219e-05,2]
[356340842,1742301032843,-500.0,8.219e-05,2]
[356340843,1742301032852,-500.0,8.219e-05,2]
[356340844,1742301032862,-515.25390076,8.219e-05,2]
[356340845,1742301032872,-500.0,8.219e-05,2]
[356340846,1742301032882,-500.0,8.219e-05,2]
[356340847,1742301032893,-500.0,8.219e-05,2]
[356340848,1742301032903,-500.0,8.219e-05,2]
[356340849,1742301032913,-3945.52,8.219e-05,2]
[356340850,1742301032923,-500.0,8.219e-05,2]
[356340851,1742301032936,-704.65,8.219e-05,2]
[356340852,1742301032946,-500.0,8.219e-05,2]
[356340853,1742301032955,-528.02758655,8.219e-05,2]
[356340854,1742301032965,-1017.19,8.219e-05,2]
[356340855,1742301032975,-500.0,8.219e-05,2]
[356340856,1742301032985,-500.0,8.219e-05,2]
[356340857,1742301032995,-500.0,8.219e-05,2]
[356340858,1742301033005,-500.0,8.219e-05,2]
[356340859,1742301033014,-507.60289689,8.219e-05,2]
[356340860,1742301033025,-506.45146868,8.219e-05,2]
[356340861,1742301033034,-506.2357008,8.219e-05,2]
[356340862,1742301033044,-517.2983277,8.219e-05,2]
[356340863,1742301033055,-619.60827468,8.219e-05,2]
[356340864,1742301033065,-500.0,8.219e-05,2]
[356340865,1742301033075,-157.11608716,8.219e-05,2]
[356340866,1742301033084,-500.78003047,8.219e-05,2]
[356340867,1742301033094,-505.63107761,8.219e-05,2]
[356340868,1742301033104,-513.57304982,8.219e-05,2]
[356340869,1742301033113,-1688.58,8.219e-05,2]
[356340870,1742301033123,-500.0,8.219e-05,2]
[356340871,1742301033132,-500.0,8.219e-05,2]
[356340872,1742301033143,-205.55463581,8.219e-05,2]
[356340888,1742301038494,-294.44536419,8.219e-05,2]
[356340889,1742301038504,-500.0,8.219e-05,2]
[356340890,1742301038513,-348.78055782,8.219e-05,2]
[356340897,1742301040820,-151.21944218,8.219e-05,2]
[356340898,1742301040830,-500.0,8.219e-05,2]
[356340899,1742301040840,-121.57469405,8.219e-05,2]
[356340900,1742301040851,-405.24110092,8.219e-05,2]
[356340901,1742301040860,-88.04146061,8.219e-05,2]
[356340905,1742301043648,-411.95853939,8.219e-05,2]
[356340906,1742301043658,-406.92249022,8.219e-05,2]
[356340911,1742301046818,-93.07750978,8.219e-05,2]
[356340913,1742301046828,-500.0,8.219e-05,2]
[356340915,1742301046838,-500.0,8.219e-05,2]
[356340917,1742301046847,-500.0,8.219e-05,2]
[356340919,1742301046856,-500.0,8.219e-05,2]
[356340921,1742301046865,-500.0,8.219e-05,2]
[356340923,1742301046874,-500.0,8.219e-05,2]
[356340924,1742301046883,-21724.22,8.219e-05,2]
[356340926,1742301046893,-500.0,8.219e-05,2]
[356340927,1742301046906,-523.18,8.219e-05,2]
[356340928,1742301046916,-629.49,8.219e-05,2]
[356340929,1742301046926,-765.94,8.219e-05,2]
[356340930,1742301046935,-500.0,8.219e-05,2]
[356340931,1742301046945,-500.0,8.219e-05,2]
[356340932,1742301046954,-500.0,8.219e-05,2]
[356340933,1742301046963,-500.0,8.219e-05,2]
[356340934,1742301046973,-533.80095609,8.219e-05,2]
[356340935,1742301046983,-3882.73,8.219e-05,2]
[356340936,1742301046992,-348.31907018,8.219e-05,2]
[356340937,1742301047001,-500.0,8.219e-05,2]
[356340938,1742301047011,-500.0,8.219e-05,2]
[356340939,1742301047020,-500.0,8.219e-05,2]
[356340940,1742301047030,-500.0,8.219e-05,2]
[356340941,1742301047039,-500.0,8.219e-05,2]
[356340942,1742301047048,-500.0,8.219e-05,2]
[356340943,1742301047057,-500.0,8.219e-05,2]
[356340944,1742301047066,-505.18581336,8.219e-05,2]
[356340945,1742301047076,-500.0,8.219e-05,2]
[356340946,1742301047086,-6005.09,8.219e-05,2]
[356340947,1742301047095,-507.33642948,8.219e-05,2]
[356340948,1742301047105,-500.0,8.219e-05,2]
[356340949,1742301047116,-500.0,8.219e-05,2]
[356340950,1742301047125,-500.0,8.219e-05,2]
[356340951,1742301047135,-467.36,8.219e-05,2]
[356340952,1742301047144,-500.0,8.219e-05,2]
[356340953,1742301047154,-504.57053881,8.219e-05,2]
[356340954,1742301047163,-500.0,8.219e-05,2]
[356340955,1742301047172,-500.0,8.219e-05,2]
[356340956,1742301047181,-500.0,8.219e-05,2]
[356340957,1742301047191,-500.0,8.219e-05,2]
[356340958,1742301047200,-500.0,8.219e-05,2]
[356340959,1742301047209,-500.0,8.219e-05,2]
[356340960,1742301047219,-500.0,8.219e-05,2]
[356340961,1742301047228,-500.0,8.219e-05,2]
[356340962,1742301047236,-500.0,8.219e-05,2]
[356340963,1742301047246,-500.0,8.219e-05,2]
[356340964,1742301047255,-500.0,8.219e-05,2]
[356340965,1742301047264,-292.60670558,8.219e-05,2]
[356340966,1742301047273,-515.07550072,8.219e-05,2]
[356340967,1742301047282,-500.0,8.219e-05,2]
[356340968,1742301047290,-500.0,8.219e-05,2]
[356340969,1742301047299,-500.0,8.219e-05,2]
[356340970,1742301047309,-500.0,8.219e-05,2]
[356340971,1742301047318,-500.0,8.219e-05,2]
[356340972,1742301047327,-500.0,8.219e-05,2]
[356340973,1742301047336,-500.0,8.219e-05,2]
[356340974,1742301047346,-500.0,8.219e-05,2]
[356340975,1742301047355,-605.27,8.219e-05,2]
[356340976,1742301047364,-500.0,8.219e-05,2]
[356340977,1742301047373,-500.0,8.219e-05,2]
[356340978,1742301047382,-209.69881728,8.219e-05,2]
[356340979,1742301047391,-500.0,8.219e-05,2]
[356340980,1742301047401,-879.41,8.219e-05,2]
[356340981,1742301047410,-1034.07,8.219e-05,2]
[356340982,1742301047419,-500.0,8.219e-05,2]
[356340983,1742301047428,-500.0,8.219e-05,2]
[356340984,1742301047437,-500.0,8.219e-05,2]
[356340985,1742301047446,-533.1,8.219e-05,2]
[356340986,1742301047455,-500.0,8.219e-05,2]
[356340987,1742301047465,-500.0,8.219e-05,2]
[356340988,1742301047474,-500.0,8.219e-05,2]
[356340989,1742301047484,-500.0,8.219e-05,2]
[356340990,1742301047493,-890.53,8.219e-05,2]
[356340991,1742301047502,-500.0,8.219e-05,2]
[356340992,1742301047512,-1127.47,8.219e-05,2]
[356340993,1742301047521,-500.0,8.219e-05,2]
[356340994,1742301047532,-500.0,8.219e-05,2]
[356340995,1742301047541,-790.33,8.219e-05,2]
[356340996,1742301047551,-2000.0,8.219e-05,2]
[356340997,1742301047560,-187.0634577,8.22e-05,2]
[356340998,1742301047569,-500.0,8.373e-05,2]
[356340999,1742301047579,-559.49290863,8.373e-05,2]
[356341000,1742301047588,-500.0,8.373e-05,2]
[356341001,1742301047597,-500.0,8.373e-05,2]
[356341002,1742301047607,-500.35669638,8.373e-05,2]
[356341003,1742301047617,-500.0,8.373e-05,2]
[356341004,1742301047627,-500.0,8.373e-05,2]
[356341005,1742301047638,-500.0,8.373e-05,2]
[356341006,1742301047649,-524.38432499,8.373e-05,2]
[356341007,1742301047659,-187.0634577,8.38e-05,2]
[356341008,1742301047669,-187.0634577,8.38e-05,2]
[356341009,1742301047682,-374.0460192,8.38e-05,2]
[356341010,1742301047693,-250.00000001,8.387e-05,2]
[356341011,1742301047703,-777.10636203,8.388e-05,2]
[356341012,1742301047713,-155.7658973,8.392e-05,2]
[356341013,1742301047726,-500.0,8.392e-05,2]
[356341014,1742301047736,-118452.18518083,8.393e-05,2]
[356341015,1742301047749,-91965.41696428,8.393e-05,2]
[356341016,1742301047759,-187.0634577,8.4e-05,2]
[356341017,1742301047769,-187.0634577,8.4e-05,2]
[356341018,1742301047779,-187.0634577,8.4e-05,2]
[356341019,1742301047788,-187.0634577,8.4e-05,2]
[356341020,1742301047797,-187.0634577,8.4e-05,2]
[356341021,1742301047806,-209.69881727,8.448e-05,2]
[356341022,1742301047816,-187.0634577,8.45e-05,2]
[356341023,1742301047825,-511.16262156,8.493e-05,2]
[356341024,1742301047834,-500.0,8.493e-05,2]
[356341025,1742301047843,-507.5671114,8.493e-05,2]
[356341026,1742301047853,-500.0,8.493e-05,2]
[356341027,1742301047862,-500.0,8.493e-05,2]
[356341028,1742301047871,-500.0,8.493e-05,2]
[356341029,1742301047881,-500.0,8.493e-05,2]
[356341030,1742301047891,-3945.52,8.493e-05,2]
[356341031,1742301047901,-704.65,8.493e-05,2]
[356341032,1742301047911,-500.0,8.493e-05,2]
[356341033,1742301047921,-1688.58,8.493e-05,2]
[356341034,1742301047931,-500.0,8.493e-05,2]
[356341035,1742301047940,-500.0,8.493e-05,2]
[356341036,1742301047950,-500.0,8.493e-05,2]
[356341037,1742301047959,-21724.22,8.493e-05,2]
[356341038,1742301047969,-765.94,8.493e-05,2]
[356341039,1742301047979,-500.0,8.493e-05,2]
[356341040,1742301047989,-500.0,8.493e-05,2]
[356341041,1742301047999,-3882.73,8.493e-05,2]
[356341042,1742301048008,-500.0,8.493e-05,2]
[356341043,1742301048017,-500.0,8.493e-05,2]
[356341044,1742301048027,-500.0,8.493e-05,2]
[356341045,1742301048036,-500.0,8.493e-05,2]
[356341046,1742301048046,-500.0,8.493e-05,2]
[356341047,1742301048056,-500.0,8.493e-05,2]
[356341048,1742301048065,-6005.09,8.493e-05,2]
[356341049,1742301048075,-500.0,8.493e-05,2]
[356341050,1742301048085,-500.0,8.493e-05,2]
[356341051,1742301048094,-500.0,8.493e-05,2]
[356341052,1742301048103,-500.0,8.493e-05,2]
[356341053,1742301048113,-500.0,8.493e-05,2]
[356341054,1742301048122,-500.0,8.493e-05,2]
[356341055,1742301048131,-500.0,8.493e-05,2]
[356341056,1742301048140,-500.0,8.493e-05,2]
[356341057,1742301048151,-500.0,8.493e-05,2]
[356341058,1742301048160,-500.0,8.493e-05,2]
[356341059,1742301048170,-500.0,8.493e-05,2]
[356341060,1742301048179,-500.0,8.493e-05,2]
[356341061,1742301048189,-500.0,8.493e-05,2]
[356341062,1742301048199,-500.0,8.493e-05,2]
[356341063,1742301048208,-500.0,8.493e-05,2]
[356341064,1742301048219,-500.0,8.493e-05,2]
[356341065,1742301048231,-292.69786834,8.493e-05,2]
[356341066,1742301048241,-500.0,8.493e-05,2]
[356341067,1742301048251,-500.0,8.493e-05,2]
[356341068,1742301048261,-879.41,8.493e-05,2]
[356341069,1742301048270,-1034.07,8.493e-05,2]
[356341070,1742301048280,-500.0,8.493e-05,2]
[356341071,1742301048290,-316.60521712,8.493e-05,2]
[356341072,1742301048300,-533.1,8.493e-05,2]
[356341073,1742301048309,-500.0,8.493e-05,2]
[356341074,1742301048318,-890.53,8.493e-05,2]
[356341075,1742301048328,-1127.47,8.493e-05,2]
[356341076,1742301048338,-500.0,8.493e-05,2]
[356341077,1742301048347,-500.0,8.493e-05,2]
[356341078,1742301048356,-790.33,8.493e-05,2]
[356341079,1742301048366,-404.6294602,8.5e-05,2]
[356341080,1742301048376,-208.90237856,8.518e-05,2]
[356341081,1742301048386,-351.0,8.662e-05,2]
[356341082,1742301048396,-209.69881727,8.678e-05,2]
[356341083,1742301048408,-300.43240725,8.767e-05,2]
[356341084,1742301048419,-500.0,8.767e-05,2]
[356341085,1742301048429,-484.7472432,8.767e-05,2]
[356341086,1742301048440,-500.0,8.767e-05,2]
[356341087,1742301048450,-3945.52,8.767e-05,2]
[356341088,1742301048460,-704.65,8.767e-05,2]
[356341089,1742301048470,-1688.58,8.767e-05,2]
[356341090,1742301048479,-445.00942918,8.767e-05,2]
[356341091,1742301048489,-500.0,8.767e-05,2]
[356341092,1742301048498,-21724.22,8.767e-05,2]
[356341093,1742301048508,-765.94,8.767e-05,2]
[356341094,1742301048519,-500.0,8.767e-05,2]
[356341095,1742301048528,-3882.73,8.767e-05,2]
[356341096,1742301048538,-500.0,8.767e-05,2]
[356341097,1742301048548,-500.0,8.767e-05,2]
[356341098,1742301048558,-500.0,8.767e-05,2]
[356341099,1742301048751,-635.01382745,8.767e-05,2]
[356341100,1742301048763,-500.0,8.767e-05,2]
[356341101,1742301048773,-3256.05211342,8.767e-05,2]
[356341102,1742301048786,-2749.03788658,8.767e-05,2]
[356341103,1742301048796,-500.0,8.767e-05,2]
[356341104,1742301048807,-500.0,8.767e-05,2]
[356341105,1742301048817,-210.99,8.767e-05,2]
[356341106,1742301048826,-500.0,8.767e-05,2]
[356341107,1742301048836,-500.0,8.767e-05,2]
[356341108,1742301048846,-500.0,8.767e-05,2]
[356341109,1742301048855,-500.0,8.767e-05,2]
[356341110,1742301048864,-453.97689851,8.767e-05,2]
[356341111,1742301060239,-183.1431957,8.219e-05,2]
[356341112,1742301074914,183.1431957,8.137e-05,2]
[356341113,1742301285076,-170.24743234,7.444e-05,2]
[356341115,1742301943135,-71.52470996,7.444e-05,2]
[356341116,1742301943156,-307.84499686,8.219e-05,2]
[356341117,1742301943342,-500.0,8.219e-05,2]
[356341118,1742301943363,-616.57,8.219e-05,2]
[356341119,1742301943384,-500.0,8.219e-05,2]
[356341120,1742301943407,-500.0,8.219e-05,2]
[356341121,1742301943429,-500.0,8.219e-05,2]
[356341122,1742301943450,-500.0,8.219e-05,2]
[356341123,1742301943471,-227.69468504,8.219e-05,2]
[356341124,1742302035117,-170.24743234,8.137e-05,2]
[356341125,1742302035137,-377.24606486,8.218e-05,2]
[356341126,1742302050085,-496.87922477,8.218e-05,2]
[356341127,1742302054803,-300.0,9.04e-05,7]
[356341128,1742302118386,-800.0,9.04e-05,7]
[356341130,1742302206445,-300.0,9.04e-05,7]
[356341131,1742302208325,-300.0,9.04e-05,7]
[356341132,1742302209288,-300.0,9.04e-05,7]
[356341133,1742302212496,-300.0,9.04e-05,7]
[356341134,1742302213648,-300.0,9.04e-05,7]
[356341135,1742302214543,-300.0,9.04e-05,7]
[356341136,1742302215624,-300.0,9.04e-05,7]
[356341137,1742302217630,-300.0,9.04e-05,7]
[356341147,1742302231965,-239.14804095,8.218e-05,2]
[356341148,1742302231975,-300.0,8.218e-05,2]
[356341149,1742302231985,-275.80819018,8.219e-05,2]
[356341150,1742302231996,-500.0,8.219e-05,2]
[356341151,1742302232006,-542.1073253,8.219e-05,2]
[356341152,1742302232016,-1574.89812729,8.219e-05,2]
[356341168,1742302237699,-425.78035054,8.219e-05,2]
[356341169,1742302237711,-1451.65152217,8.219e-05,2]
[356341170,1742302237721,-500.0,8.219e-05,2]
[356341171,1742302237731,-101.56327417,8.219e-05,2]
[356341172,1742302237743,-568.63672583,8.219e-05,2]
[356341173,1742302237753,-500.0,8.219e-05,2]
[356341174,1742302237763,-500.0,8.219e-05,2]
[356341175,1742302237772,-322.59929949,8.219e-05,2]
[356341176,1742302237784,-177.40070051,8.219e-05,2]
[356341177,1742302237794,-500.0,8.219e-05,2]
[356341178,1742302237804,-500.0,8.219e-05,2]
[356341179,1742302237814,-500.0,8.219e-05,2]
[356341180,1742302237824,-500.0,8.219e-05,2]
[356341181,1742302237834,-500.0,8.219e-05,2]
[356341182,1742302237844,-590.88,8.219e-05,2]
[356341183,1742302237854,-947.9,8.219e-05,2]
[356341184,1742302237864,-500.0,8.219e-05,2]
[356341185,1742302237875,-500.0,8.219e-05,2]
[356341186,1742302237884,-369.16240315,8.219e-05,2]
[356341187,1742302237894,-500.0,8.219e-05,2]
[356341188,1742302237905,-500.0,8.219e-05,2]
[356341189,1742302237915,-724.47,8.219e-05,2]
[356341190,1742302237924,-500.0,8.219e-05,2]
[356341191,1742302237934,-5254.46,8.219e-05,2]
[356341192,1742302237945,-500.0,8.219e-05,2]
[356341193,1742302237955,-500.0,8.219e-05,2]
[356341194,1742302237965,-319.03,8.219e-05,2]
[356341195,1742302237975,-500.0,8.219e-05,2]
[356341196,1742302237984,-3397.39,8.219e-05,2]
[356341197,1742302237994,-1342.89583947,8.219e-05,2]
[356341198,1742302238006,-406.21416053,8.219e-05,2]
[356341199,1742302238016,-500.0,8.219e-05,2]
[356341200,1742302238025,-500.0,8.219e-05,2]
[356341201,1742302238035,-500.0,8.219e-05,2]
[356341202,1742302238045,-500.0,8.219e-05,2]
[356341203,1742302238055,-500.0,8.219e-05,2]
[356341204,1742302238068,-500.0,8.219e-05,2]
[356341205,1742302238078,-1297.87,8.219e-05,2]
[356341206,1742302238088,-500.0,8.219e-05,2]
[356341207,1742302238098,-500.0,8.219e-05,2]
[356341208,1742302238109,-1118.28,8.219e-05,2]
[356341209,1742302238119,-500.0,8.219e-05,2]
[356341210,1742302238129,-949.76,8.219e-05,2]
[356341211,1742302238139,-500.0,8.219e-05,2]
[356341212,1742302238150,-342.0668043,8.219e-05,2]
[356341213,1742302238161,-500.0,8.219e-05,2]
[356341214,1742302238171,-19008.69,8.219e-05,2]
[356341215,1742302238181,-500.0,8.219e-05,2]
[356341216,1742302238193,-3000.0,8.22e-05,2]
[356341217,1742302238203,-459.03612811,8.292e-05,2]
[356341218,1742302238212,-12965.3694067,8.293e-05,2]
[356341279,1742302243602,-413.73715465,8.219e-05,2]
[356341309,1742302246193,-86.26284535,8.219e-05,2]
[356341310,1742302246204,-272.59,8.219e-05,2]
[356341311,1742302246214,-1638.97,8.219e-05,2]
[356341312,1742302246223,-642.27,8.219e-05,2]
[356341313,1742302246234,-60620.74115517,8.293e-05,2]
[356341314,1742302246246,-2495.61,8.293e-05,2]
[356341315,1742302246258,-455.07001706,8.293e-05,2]
[356341316,1742302246270,-2205.37627954,8.293e-05,2]
[356341317,1742302288544,-300.0,9.04e-05,7]
[356341318,1742302289613,-14.0,9.04e-05,7]
[356341319,1742302307793,286.0,9.04e-05,7]
[356341320,1742302307818,300.0,9.04e-05,7]
[356341321,1742302389275,-300.0,9.04e-05,7]
[356341322,1742302390724,-114.0,9.04e-05,7]
[356341323,1742302681867,150.46068575,0.0001517,120]
[356341324,1742303352124,-566.29770377,8.137e-05,2]
[356341343,1742303432170,-73.29970029,8.137e-05,2]
[356341344,1742303432180,-300.0,8.218e-05,2]
[356341345,1742303432190,-500.0,8.219e-05,2]
[356341346,1742303432200,-500.0,8.219e-05,2]
[356341348,1742303432210,-500.0,8.219e-05,2]
[356341349,1742303432220,-500.0,8.219e-05,2]
[356341350,1742303432230,-500.0,8.219e-05,2]
[356341351,1742303432241,-500.0,8.219e-05,2]
[356341352,1742303432251,-500.0,8.219e-05,2]
[356341353,1742303432264,-196.59613818,8.219e-05,2]
[356341354,1742303432275,-566.26,8.219e-05,2]
[356341355,1742303432285,-500.0,8.219e-05,2]
[356341356,1742303432296,-18216.66,8.219e-05,2]
[356341357,1742303432306,-500.0,8.219e-05,2]
[356341358,1742303432315,-500.0,8.219e-05,2]
[356341359,1742303432325,-500.0,8.219e-05,2]
[356341360,1742303432334,-1303.92008935,8.219e-05,2]
[356341363,1742303438021,-372.30991065,8.219e-05,2]
[356341364,1742303438032,-615.51,8.219e-05,2]
[356341365,1742303438041,-500.0,8.219e-05,2]
[356341366,1742303438051,-500.0,8.219e-05,2]
[356341367,1742303438061,-500.0,8.219e-05,2]
[356341368,1742303438071,-500.0,8.219e-05,2]
[356341369,1742303438081,-500.0,8.219e-05,2]
[356341370,1742303438091,-1071.68,8.219e-05,2]
[356341371,1742303438101,-500.0,8.219e-05,2]
[356341372,1742303438111,-273.77,8.219e-05,2]
[356341373,1742303438120,-500.0,8.219e-05,2]
[356341375,1742303438131,-500.0,8.219e-05,2]
[356341376,1742303438140,-1570.68,8.219e-05,2]
[356341377,1742303438150,-500.0,8.219e-05,2]
[356341378,1742303438159,-500.0,8.219e-05,2]
[356341379,1742303438169,-500.0,8.219e-05,2]
[356341380,1742303438179,-910.19,8.219e-05,2]
[356341381,1742303438188,-500.0,8.219e-05,2]
[356341382,1742303438198,-5035.52,8.219e-05,2]
[356341383,1742303438209,-500.0,8.219e-05,2]
[356341384,1742303438219,-1929.94,8.219e-05,2]
[356341385,1742303438231,-908.4,8.219e-05,2]
[356341386,1742303438241,-500.0,8.219e-05,2]
[356341387,1742303438250,-500.0,8.219e-05,2]
[356341388,1742303438260,-1243.79,8.219e-05,2]
[356341389,1742303438271,-500.0,8.219e-05,2]
[356341390,1742303438280,-694.28,8.219e-05,2]
[356341391,1742303438290,-500.0,8.219e-05,2]
[356341392,1742303438300,-500.0,8.219e-05,2]
[356341393,1742303438310,-3255.83,8.219e-05,2]
[356341394,1742303438536,-500.0,8.219e-05,2]
[356341395,1742303438546,-353.52112197,8.219e-05,2]
[356341396,1742303438557,-1352.64133366,8.22e-05,2]
[356341400,1742303443010,-387.76165885,8.219e-05,2]
[356341401,1742303443120,-112.23834115,8.219e-05,2]
[356341402,1742303443129,-137.27996965,8.22e-05,2]
[356341403,1742303443141,-405.08413384,8.22e-05,2]
[356341468,1742303651399,-200.0,7.397e-05,2]
[356341469,1742303802190,-401.74914876,0.00017,120]
[356341470,1742303802221,-401.74914876,0.00019,120]
[356341471,1742303802253,-659.48879107,0.0002,120]
[356341472,1742303802276,-1925.29642765,0.0002,120]
[356341473,1742303802400,-803.49829752,0.0002,120]
[356341474,1742303802423,-401.74914876,0.0002,120]
[356341475,1742303802455,-171.06255372,0.0002197,120]
[356341476,1742303802591,-42.29744628,0.0002197,120]
[356341477,1742303802616,-150.5,0.0002198,120]
[356341478,1742303802641,-273.31,0.0002199,120]
[356341479,1742303802665,-150.5,0.0002199,120]
[356341480,1742303802693,-160.0,0.00024,120]
[356341481,1742303802722,-599.70255372,0.00025,120]
[356341482,1742303802869,-400.29744628,0.00025,120]
[356341483,1742303802894,-401.74914876,0.00025,120]
[356341484,1742303802921,-574.26340496,0.00026137,120]
[356341485,1742303803212,-758.73659504,0.00026137,120]
[356341486,1742303803237,-214.90688,0.00027,120]